fUST/lending_fUST_20260610
["ID","MTS","AMOUNT","RATE_DAILY","PERIOD"]
[424737708,1781104173000,-0.002,0.00011271,2]
[424737709,1781104178000,1053.91400875,0.0001128,2]
[424737731,1781104231000,-398.81513846,0.00011385,2]
[424737735,1781104231000,-3531.24336618,0.00011385,2]
[424737734,1781104231000,-0.25701519,0.00011385,2]
[424737733,1781104231000,-438.23496928,0.00011385,2]
[424737751,1781104232000,-600.0,0.00018598,2]
[424737740,1781104232000,-500.0,0.00017335,2]
[424737738,1781104232000,-229.7999768,0.0001653,2]
[424737748,1781104232000,-283.92,0.0001745,2]
[424737746,1781104232000,-6659.3020597,0.00017336,2]
[424737749,1781104232000,-170.69111922,0.00017825,2]
[424737747,1781104232000,-737.021524,0.00017336,2]
[424737745,1781104232000,-500.0,0.00017335,2]
[424737743,1781104232000,-500.0,0.00017335,2]
[424737744,1781104232000,-500.0,0.00017335,2]
[424737737,1781104232000,-4269.56385869,0.000115,2]
[424737736,1781104232000,-631.44951089,0.00011385,2]
[424737741,1781104232000,-432.40149322,0.00017335,2]
[424737750,1781104232000,-169.9892318,0.00018588,2]
[424737752,1781104232000,-186.0,0.00018985,2]
[424737766,1781104232000,-500.0,0.00019178,2]
[424737755,1781104232000,-500.0,0.00019178,2]
[424737754,1781104232000,-287.754,0.00019178,2]
[424737767,1781104232000,-500.0,0.00019178,2]
[424737769,1781104232000,-271.06822373,0.00019178,2]
[424737768,1781104232000,-500.0,0.00019178,2]
[424737765,1781104232000,-500.0,0.00019178,2]
[424737762,1781104232000,-500.0,0.00019178,2]
[424737763,1781104232000,-202.31601413,0.00019178,2]
[424737764,1781104232000,-153.34364101,0.00019178,2]
[424737757,1781104232000,-1707.89,0.00019178,2]
[424737761,1781104232000,-500.0,0.00019178,2]
[424737759,1781104232000,-500.0,0.00019178,2]
[424737758,1781104232000,-500.0,0.00019178,2]
[424737756,1781104232000,-578.76,0.00019178,2]
[424737753,1781104232000,-417.15472785,0.00019177,2]
[424737760,1781104232000,-500.0,0.00019178,2]
[424737788,1781104240000,-213.94699448,0.00019452,2]
[424737783,1781104240000,-5000.0,0.00018986,2]
[424737786,1781104240000,-554.64,0.00019178,2]
[424737797,1781104240000,-500.0,0.00019452,2]
[424737785,1781104240000,-500.0,0.00019178,2]
[424737796,1781104240000,-500.0,0.00019452,2]
[424737787,1781104240000,-570.29044183,0.00019352,2]
[424737790,1781104240000,-1707.89,0.00019452,2]
[424737784,1781104240000,-228.93177627,0.00019178,2]
[424737794,1781104240000,-500.0,0.00019452,2]
[424737800,1781104240000,-500.0,0.00019452,2]
[424737799,1781104240000,-500.0,0.00019452,2]
[424737798,1781104240000,-500.0,0.00019452,2]
[424737791,1781104240000,-500.0,0.00019452,2]
[424737795,1781104240000,-500.0,0.00019452,2]
[424737793,1781104240000,-500.0,0.00019452,2]
[424737789,1781104240000,-500.0,0.00019452,2]
[424737792,1781104240000,-500.0,0.00019452,2]
[424737802,1781104241000,-3187.61415772,0.00019524,2]
[424737801,1781104241000,-554.64,0.00019452,2]
[424737889,1781104246000,-581.12394517,0.00019525,2]
[424737890,1781104246000,-581.12394517,0.00019525,2]
[424737880,1781104246000,-500.0,0.00019178,2]
[424737881,1781104246000,-500.0,0.00019452,2]
[424737884,1781104246000,-581.12394517,0.00019525,2]
[424737885,1781104246000,-581.12394517,0.00019525,2]
[424737888,1781104246000,-581.12394517,0.00019525,2]
[424737887,1781104246000,-581.12394517,0.00019525,2]
[424737883,1781104246000,-242.13100388,0.00019525,2]
[424737882,1781104246000,-686.86139295,0.00019524,2]
[424737892,1781104246000,-581.12394517,0.00019525,2]
[424737891,1781104246000,-581.12394517,0.00019525,2]
[424737893,1781104246000,-581.12394517,0.00019525,2]
[424737894,1781104246000,-581.12394517,0.00019525,2]
[424737895,1781104246000,-581.12394517,0.00019525,2]
[424737896,1781104246000,-581.12394517,0.00019525,2]
[424737897,1781104246000,-581.12394517,0.00019525,2]
[424737898,1781104246000,-1275.67495902,0.00019526,2]
[424737899,1781104246000,-1483.36430491,0.00019526,2]
[424737886,1781104246000,-581.12394517,0.00019525,2]
[424737932,1781105432000,-388.52829523,0.00016527,2]
[424737939,1781105432000,-300.0,0.00017681,2]
[424737936,1781105432000,-300.0,0.00017681,2]
[424737924,1781105432000,-5000.0,0.0001527,2]
[424737927,1781105432000,-361.27162444,0.00015927,2]
[424737929,1781105432000,-158.09058262,0.00016219,2]
[424737945,1781105432000,-154.5647152,0.000179,2]
[424737925,1781105432000,-166.55348189,0.00015913,2]
[424737922,1781105432000,-4425.5239172,0.00015117,2]
[424737941,1781105432000,-300.0,0.00017681,2]
[424737919,1781105432000,-574.4760828,0.00015117,2]
[424737943,1781105432000,-157.12222384,0.00017831,2]
[424737935,1781105432000,-300.0,0.00017681,2]
[424737959,1781105432000,-155.75215196,0.000179,2]
[424737957,1781105432000,-155.75215196,0.000179,2]
[424737955,1781105432000,-155.35660461,0.000179,2]
[424737960,1781105432000,-45.08733243,0.00017911,2]
[424737952,1781105432000,-22.48073485,0.000179,2]
[424737946,1781105432000,-154.5647152,0.000179,2]
[424737950,1781105432000,-132.75594672,0.000179,2]
[424737948,1781105432000,-155.23668157,0.000179,2]
[424737953,1781105432000,-155.35660461,0.000179,2]
[424738032,1781105438000,-62971.39184161,0.00017912,2]
[424738034,1781105438000,-5675.56544906,0.00017912,2]
[424738030,1781105438000,-217.33496738,0.00017912,2]
[424738028,1781105438000,-525.2031094,0.00017911,2]
[424738041,1781105438000,-489.61189889,0.00017912,2]
[424738036,1781105438000,-67885.97396018,0.00017912,2]
[424738038,1781105438000,-3793.16810757,0.00017912,2]
[424738186,1781105441000,-340.71017819,0.00017732,2]
[424738189,1781105441000,-1642.70791972,0.00017912,2]
[424738188,1781105441000,-90.61974001,0.00017732,2]
[424738187,1781105441000,-610.90995526,0.00017732,2]
[424738278,1781105443000,-10000.10798349,0.00017912,2]
[424738281,1781105443000,-5794.19951194,0.00017912,2]
[424738276,1781105443000,-1457.17626472,0.00017912,2]
[424738736,1781105530000,-5000.0,0.00017733,2]
[424738761,1781106632000,-361.66590425,0.00014593,2]
[424738762,1781106632000,-518.45081186,0.00014756,2]
[424738763,1781106632000,-402.65182795,0.00014756,2]
[424738765,1781106632000,-5000.0,0.00014905,2]
[424738773,1781106632000,-158.09058262,0.00016419,2]
[424738764,1781106632000,-4078.89736019,0.00014756,2]
[424738768,1781106632000,-189.4949645,0.00015639,2]
[424738766,1781106632000,-868.03816642,0.00015362,2]
[424738767,1781106632000,-179.35500449,0.00015639,2]
[424738772,1781106632000,-361.27162444,0.00016327,2]
[424738769,1781106632000,-179.35500448,0.00016122,2]
[424738770,1781106632000,-388.52829523,0.00016127,2]
[424738771,1781106632000,-163.602384,0.00016278,2]
[424738779,1781106632000,-499.00413654,0.00017511,2]
[424738781,1781106632000,-310.79670442,0.00017611,2]
[424738775,1781106632000,-166.55348189,0.00016727,2]
[424738778,1781106632000,-152.0,0.00017481,2]
[424738777,1781106632000,-376.49727318,0.00016917,2]
[424738776,1781106632000,-209.37452629,0.00016917,2]
[424738782,1781106632000,-72.34742601,0.00017611,2]
[424738774,1781106632000,-316.18116523,0.00016727,2]
[424738780,1781106632000,-1149.52241218,0.00017611,8]
[424738786,1781106640000,152.0,0.00020617,30]
[424738883,1781106641000,-500.0,0.0001761,2]
[424738879,1781106641000,-500.0,0.0001761,2]
[424738888,1781106641000,-500.0,0.0001761,2]
[424738880,1781106641000,-567.16118492,0.0001761,2]
[424738890,1781106641000,-500.0,0.0001761,2]
[424738901,1781106641000,-584.76659285,0.00017611,2]
[424738886,1781106641000,-500.0,0.0001761,2]
[424738882,1781106641000,-500.0,0.0001761,2]
[424738881,1781106641000,-500.0,0.0001761,2]
[424738885,1781106641000,-500.0,0.0001761,2]
[424738878,1781106641000,-500.0,0.0001761,2]
[424738887,1781106641000,-473.02897223,0.0001761,2]
[424738892,1781106641000,-500.0,0.0001761,2]
[424738884,1781106641000,-500.0,0.0001761,2]
[424738877,1781106641000,-500.0,0.0001761,2]
[424738874,1781106641000,-413.7003457,0.0001761,2]
[424738873,1781106641000,-500.0,0.0001761,2]
[424738854,1781106641000,-152.0,0.00017592,2]
[424738855,1781106641000,-500.0,0.0001761,2]
[424738857,1781106641000,-2.17199851,0.0001761,2]
[424738856,1781106641000,-500.0,0.0001761,2]
[424738864,1781106641000,-497.82800149,0.0001761,2]
[424738866,1781106641000,-500.0,0.0001761,2]
[424738875,1781106641000,-500.0,0.0001761,2]
[424738865,1781106641000,-500.0,0.0001761,2]
[424738867,1781106641000,-62.17199851,0.0001761,2]
[424738870,1781106641000,-595.33859756,0.0001761,2]
[424738869,1781106641000,-500.0,0.0001761,2]
[424738872,1781106641000,-500.0,0.0001761,2]
[424738871,1781106641000,-500.0,0.0001761,2]
[424738876,1781106641000,-500.0,0.0001761,2]
[424738868,1781106641000,-437.82800149,0.0001761,2]
[424738902,1781106641000,-584.76659285,0.00017611,2]
[424738889,1781106641000,-500.0,0.0001761,2]
[424738891,1781106641000,-500.0,0.0001761,2]
[424738914,1781106641000,-584.76659285,0.00017611,2]
[424738911,1781106641000,-584.76659285,0.00017611,2]
[424738928,1781106641000,-195.53725286,0.000177,2]
[424738922,1781106641000,-789.43490032,0.00017611,2]
[424738925,1781106641000,-18102.23726307,0.00017612,2]
[424738919,1781106641000,-584.76659285,0.00017611,2]
[424738912,1781106641000,-584.76659285,0.00017611,2]
[424738921,1781106641000,-584.76659285,0.00017611,2]
[424738926,1781106641000,-727861.84068924,0.00017612,2]
[424738918,1781106641000,-584.76659285,0.00017611,2]
[424738924,1781106641000,-151.0,0.00017612,2]
[424738917,1781106641000,-584.76659285,0.00017611,2]
[424738927,1781106641000,-195.53725286,0.000177,2]
[424738900,1781106641000,-584.76659285,0.00017611,2]
[424738920,1781106641000,-584.76659285,0.00017611,2]
[424738905,1781106641000,-584.76659285,0.00017611,2]
[424738923,1781106641000,-789.43490032,0.00017611,2]
[424738913,1781106641000,-584.76659285,0.00017611,2]
[424738915,1781106641000,-584.76659285,0.00017611,2]
[424738899,1781106641000,-584.76659285,0.00017611,2]
[424738898,1781106641000,-584.76659285,0.00017611,2]
[424738896,1781106641000,-584.76659285,0.00017611,2]
[424738893,1781106641000,-500.0,0.0001761,2]
[424738895,1781106641000,-584.76659285,0.00017611,2]
[424738897,1781106641000,-584.76659285,0.00017611,2]
[424738894,1781106641000,-512.41916684,0.00017611,2]
[424738907,1781106641000,-584.76659285,0.00017611,2]
[424738904,1781106641000,-584.76659285,0.00017611,2]
[424738906,1781106641000,-584.76659285,0.00017611,2]
[424738909,1781106641000,-584.76659285,0.00017611,2]
[424738910,1781106641000,-584.76659285,0.00017611,2]
[424738908,1781106641000,-584.76659285,0.00017611,2]
[424738903,1781106641000,-584.76659285,0.00017611,2]
[424738916,1781106641000,-584.76659285,0.00017611,2]
[424738967,1781106642000,-300.0,0.00018269,2]
[424738970,1781106642000,-213.94699448,0.00018356,2]
[424738969,1781106642000,-600.0,0.00018269,2]
[424738979,1781106642000,-500.0,0.00019178,2]
[424738978,1781106642000,-500.0,0.00019178,2]
[424738963,1781106642000,-300.0,0.00018269,2]
[424738960,1781106642000,-300.0,0.00018269,2]
[424738958,1781106642000,-300.0,0.00018269,2]
[424738961,1781106642000,-300.0,0.00018269,2]
[424738966,1781106642000,-300.0,0.00018269,2]
[424738972,1781106642000,-500.0,0.00019178,2]
[424738964,1781106642000,-300.0,0.00018269,2]
[424738968,1781106642000,-300.0,0.00018269,2]
[424738976,1781106642000,-500.0,0.00019178,2]
[424738991,1781106642000,-500.0,0.00019452,2]
[424738971,1781106642000,-500.0,0.00019178,2]
[424738975,1781106642000,-500.0,0.00019178,2]
[424738974,1781106642000,-500.0,0.00019178,2]
[424738980,1781106642000,-500.0,0.00019178,2]
[424738981,1781106642000,-500.0,0.00019178,2]
[424738983,1781106642000,-500.0,0.00019178,2]
[424738992,1781106642000,-500.0,0.00019452,2]
[424738985,1781106642000,-291.36175477,0.00019452,2]
[424738986,1781106642000,-500.0,0.00019452,2]
[424738989,1781106642000,-1636.73,0.00019452,2]
[424738984,1781106642000,-554.64,0.00019178,2]
[424738990,1781106642000,-500.0,0.00019452,2]
[424738962,1781106642000,-300.0,0.00018269,2]
[424738977,1781106642000,-500.0,0.00019178,2]
[424738956,1781106642000,-300.0,0.00018269,2]
[424738941,1781106642000,-151.0,0.000179,2]
[424738959,1781106642000,-300.0,0.00018269,2]
[424738929,1781106642000,-202.16694023,0.000177,2]
[424738930,1781106642000,-202.16694023,0.000177,2]
[424738932,1781106642000,-203.35133837,0.000177,2]
[424738934,1781106642000,-207.5009303,0.000177,2]
[424738936,1781106642000,-190.22726229,0.00017711,2]
[424738935,1781106642000,-182.555,0.00017711,2]
[424738933,1781106642000,-207.5009303,0.000177,2]
[424738931,1781106642000,-203.35133837,0.000177,2]
[424738940,1781106642000,-157.12222384,0.00017831,2]
[424738937,1781106642000,-151.0,0.00017712,2]
[424738939,1781106642000,-28770.6127109,0.0001781,2]
[424738938,1781106642000,-202558.90188702,0.00017712,2]
[424738942,1781106642000,-151.0,0.000179,2]
[424738965,1781106642000,-300.0,0.00018269,2]
[424738982,1781106642000,-500.0,0.00019178,2]
[424738943,1781106642000,-182.289963,0.00017921,2]
[424738954,1781106642000,-300.0,0.00018269,2]
[424738945,1781106642000,-151.0,0.00018,2]
[424738946,1781106642000,-151.0,0.00018,2]
[424738949,1781106642000,-15073.983192,0.00018,2]
[424738947,1781106642000,-151.0,0.00018,2]
[424738948,1781106642000,-151.0,0.00018,2]
[424738950,1781106642000,-151.0,0.000181,2]
[424738951,1781106642000,-151.0,0.000181,2]
[424738952,1781106642000,-151.0,0.000181,2]
[424738953,1781106642000,-689.3999304,0.00018112,2]
[424738955,1781106642000,-300.0,0.00018269,2]
[424738957,1781106642000,-300.0,0.00018269,2]
[424738944,1781106642000,-151.0,0.00018,2]
[424738987,1781106642000,-332.9848626,0.00019452,2]
[424738973,1781106642000,-1636.73,0.00019178,2]
[424738994,1781106642000,-500.0,0.00019452,2]
[424739024,1781106642000,-1159.42969902,0.0002,2]
[424739026,1781106642000,-500.0,0.0002,2]
[424739022,1781106642000,-182.289963,0.00019807,2]
[424739023,1781106642000,-150.0,0.00019964,2]
[424739031,1781106642000,-500.0,0.0002,2]
[424739033,1781106642000,-500.0,0.0002,2]
[424739034,1781106642000,-500.0,0.0002,2]
[424739035,1781106642000,-500.0,0.0002,2]
[424739037,1781106642000,-500.0,0.0002,2]
[424739032,1781106642000,-500.0,0.0002,2]
[424739046,1781106642000,-405.60029225,0.00020273,2]
[424739039,1781106642000,-519.76855896,0.00020238,2]
[424739041,1781106642000,-360.23305421,0.00020273,2]
[424739038,1781106642000,-720.0,0.00020096,2]
[424739036,1781106642000,-500.0,0.0002,2]
[424739044,1781106642000,-500.0,0.00020273,2]
[424739042,1781106642000,-500.0,0.00020273,2]
[424739043,1781106642000,-1636.73,0.00020273,2]
[424739048,1781106642000,-500.0,0.00020273,2]
[424739058,1781106642000,-500.0,0.00020547,2]
[424739047,1781106642000,-500.0,0.00020273,2]
[424739049,1781106642000,-500.0,0.00020273,2]
[424739052,1781106642000,-500.0,0.00020273,2]
[424739054,1781106642000,-500.0,0.00020273,2]
[424739056,1781106642000,-1636.73,0.00020547,2]
[424739055,1781106642000,-392.90519333,0.00020547,2]
[424739051,1781106642000,-500.0,0.00020273,2]
[424738988,1781106642000,-500.0,0.00019452,2]
[424739050,1781106642000,-500.0,0.00020273,2]
[424739030,1781106642000,-500.0,0.0002,2]
[424739029,1781106642000,-500.0,0.0002,2]
[424739060,1781106642000,-500.0,0.00020547,2]
[424739028,1781106642000,-1636.73,0.0002,2]
[424739021,1781106642000,-186.0,0.00019761,2]
[424738993,1781106642000,-500.0,0.00019452,2]
[424739005,1781106642000,-500.0,0.00019726,2]
[424738998,1781106642000,-188.52242759,0.00019452,2]
[424738997,1781106642000,-623.93885408,0.00019452,2]
[424738995,1781106642000,-500.0,0.00019452,2]
[424738996,1781106642000,-500.0,0.00019452,2]
[424738999,1781106642000,-500.0,0.00019452,2]
[424739004,1781106642000,-1636.73,0.00019726,2]
[424739002,1781106642000,-500.0,0.00019726,2]
[424739003,1781106642000,-500.0,0.00019726,2]
[424739001,1781106642000,-500.0,0.00019452,2]
[424739006,1781106642000,-500.0,0.00019726,2]
[424739007,1781106642000,-500.0,0.00019726,2]
[424739000,1781106642000,-382.91136786,0.00019452,2]
[424739009,1781106642000,-500.0,0.00019726,2]
[424739027,1781106642000,-500.0,0.0002,2]
[424739008,1781106642000,-500.0,0.00019726,2]
[424739019,1781106642000,-280.50697659,0.00019731,2]
[424739020,1781106642000,-437.85385877,0.00019731,2]
[424739013,1781106642000,-500.0,0.00019726,2]
[424739018,1781106642000,-245.44360452,0.00019731,2]
[424739016,1781106642000,-1410.02846081,0.00019731,2]
[424739017,1781106642000,-2200.96630054,0.00019731,2]
[424739011,1781106642000,-500.0,0.00019726,2]
[424739012,1781106642000,-500.0,0.00019726,2]
[424739014,1781106642000,-440.633894,0.00019731,2]
[424739010,1781106642000,-500.0,0.00019726,2]
[424739015,1781106642000,-793.1410092,0.00019731,2]
[424739118,1781106643000,-151.0,0.00021918,2]
[424739122,1781106643000,-151.0,0.00021918,2]
[424739108,1781106643000,-151.0,0.00021918,2]
[424739116,1781106643000,-151.0,0.00021918,2]
[424739113,1781106643000,-151.0,0.00021918,2]
[424739096,1781106643000,-500.0,0.00021643,2]
[424739101,1781106643000,-500.0,0.00021917,2]
[424739098,1781106643000,-500.0,0.00021643,2]
[424739099,1781106643000,-182.289963,0.00021693,2]
[424739100,1781106643000,-1636.73,0.00021917,2]
[424739092,1781106643000,-1636.73,0.00021643,2]
[424739103,1781106643000,-500.0,0.00021917,2]
[424739120,1781106643000,-151.0,0.00021918,2]
[424739131,1781106643000,-151.0,0.00021918,2]
[424739106,1781106643000,-151.0,0.00021918,2]
[424739102,1781106643000,-500.0,0.00021917,2]
[424739111,1781106643000,-151.0,0.00021918,2]
[424739104,1781106643000,-500.0,0.00021917,2]
[424739109,1781106643000,-151.0,0.00021918,2]
[424739125,1781106643000,-151.0,0.00021918,2]
[424739132,1781106643000,-151.0,0.00021918,2]
[424739124,1781106643000,-151.0,0.00021918,2]
[424739129,1781106643000,-151.0,0.00021918,2]
[424739136,1781106643000,-151.0,0.00021918,2]
[424739127,1781106643000,-151.0,0.00021918,2]
[424739088,1781106643000,-500.0,0.00021369,2]
[424739134,1781106643000,-225.690161,0.00021918,2]
[424739115,1781106643000,-151.0,0.00021918,2]
[424739091,1781106643000,-796.0,0.000216,2]
[424739085,1781106643000,-500.0,0.00021095,2]
[424739093,1781106643000,-500.0,0.00021643,2]
[424739138,1781106643000,-234.144061,0.00021918,2]
[424739062,1781106643000,-500.0,0.00020547,2]
[424739063,1781106643000,-500.0,0.00020547,2]
[424739064,1781106643000,-500.0,0.00020547,2]
[424739065,1781106643000,-500.0,0.00020547,2]
[424739069,1781106643000,-499.00413654,0.00020709,2]
[424739072,1781106643000,-500.0,0.00020821,2]
[424739068,1781106643000,-172.3,0.00020563,7]
[424739066,1781106643000,-500.0,0.00020547,2]
[424739071,1781106643000,-500.0,0.00020821,2]
[424739073,1781106643000,-500.0,0.00020821,2]
[424739070,1781106643000,-1636.73,0.00020821,2]
[424739067,1781106643000,-500.0,0.00020547,2]
[424739094,1781106643000,-500.0,0.00021643,2]
[424739086,1781106643000,-1636.73,0.00021369,2]
[424739084,1781106643000,-500.0,0.00021095,2]
[424739074,1781106643000,-576.2998103,0.00020821,2]
[424739075,1781106643000,-500.0,0.00020821,2]
[424739076,1781106643000,-500.0,0.00020821,2]
[424739078,1781106643000,-231.95286264,0.00020821,2]
[424739077,1781106643000,-500.0,0.00020821,2]
[424739082,1781106643000,-500.0,0.00021095,2]
[424739079,1781106643000,-1636.73,0.00021095,2]
[424739080,1781106643000,-592.41843955,0.00021095,2]
[424739081,1781106643000,-500.0,0.00021095,2]
[424739087,1781106643000,-500.0,0.00021369,2]
[424739090,1781106643000,-500.0,0.00021369,2]
[424739089,1781106643000,-500.0,0.00021369,2]
[424739083,1781106643000,-568.0868099,0.00021095,2]
[424739139,1781106643000,-151.0,0.00021918,2]
[424739227,1781106643000,-230.909732,0.00022975,14]
[424739146,1781106643000,-151.0,0.00021918,2]
[424739204,1781106643000,-500.0,0.00022465,2]
[424739201,1781106643000,-1636.73,0.00022465,2]
[424739202,1781106643000,-500.0,0.00022465,2]
[424739216,1781106643000,-500.0,0.00022739,2]
[424739209,1781106643000,-1039.51937748,0.00022689,2]
[424739207,1781106643000,-446.0,0.00022466,7]
[424739218,1781106643000,-446.0,0.0002274,7]
[424739211,1781106643000,-1636.73,0.00022739,2]
[424739215,1781106643000,-500.0,0.00022739,2]
[424739220,1781106643000,-186.0,0.00022761,2]
[424739222,1781106643000,-170.0,0.00022834,2]
[424739226,1781106643000,-282.77777904,0.00022975,2]
[424739224,1781106643000,-493.84236859,0.00022955,2]
[424739235,1781106643000,-152.0,0.00023,7]
[424739237,1781106643000,-1636.73,0.00023013,2]
[424739231,1781106643000,-152.0,0.00022977,7]
[424739229,1781106643000,-152.0,0.00022977,7]
[424739239,1781106643000,-516.76536773,0.00023013,2]
[424739243,1781106643000,-446.0,0.00023014,7]
[424739241,1781106643000,-500.0,0.00023013,2]
[424739252,1781106643000,-300.0,0.00023238,4]
[424739248,1781106643000,-152.0,0.00023102,7]
[424739250,1781106643000,-152.0,0.00023102,7]
[424739246,1781106643000,-152.0,0.00023067,7]
[424739245,1781106643000,-446.0,0.00023014,7]
[424739255,1781106643000,-245.52,0.00023238,4]
[424739141,1781106643000,-151.0,0.00021918,2]
[424739197,1781106643000,-866.2661479,0.00022226,2]
[424739206,1781106643000,-500.0,0.00022465,2]
[424739213,1781106643000,-271.81476384,0.00022739,2]
[424739195,1781106643000,-446.0,0.00022192,7]
[424739143,1781106643000,-151.0,0.00021918,2]
[424739144,1781106643000,-151.0,0.00021918,2]
[424739155,1781106643000,-151.0,0.00021918,2]
[424739199,1781106643000,-976.90837888,0.00022226,2]
[424739153,1781106643000,-151.0,0.00021918,2]
[424739150,1781106643000,-151.0,0.00021918,2]
[424739157,1781106643000,-151.0,0.00021918,2]
[424739162,1781106643000,-173.25322958,0.00021918,2]
[424739159,1781106643000,-297.752683,0.00021918,2]
[424739148,1781106643000,-151.0,0.00021918,2]
[424739168,1781106643000,-693.01291832,0.00021918,2]
[424739160,1781106643000,-169.04374752,0.00021918,2]
[424739166,1781106643000,-519.75968874,0.00021918,2]
[424739170,1781106643000,-195.38167578,0.00021918,2]
[424739151,1781106643000,-151.0,0.00021918,2]
[424739171,1781106643000,-390.76335155,0.00021918,2]
[424739164,1781106643000,-346.50645916,0.00021918,2]
[424739193,1781106643000,-500.0,0.00022191,2]
[424739190,1781106643000,-500.0,0.00022191,2]
[424739186,1781106643000,-1636.73,0.00022191,2]
[424739184,1781106643000,-220.0,0.00022191,2]
[424739182,1781106643000,-550.0,0.00022191,2]
[424739188,1781106643000,-165.0640392,0.00022191,2]
[424739179,1781106643000,-446.0,0.00022,2]
[424739181,1781106643000,-864.0,0.00022106,10]
[424739175,1781106643000,-781.5267031,0.00021918,2]
[424739177,1781106643000,-550.0,0.00021918,2]
[424739173,1781106643000,-586.14502733,0.00021918,2]
[424739192,1781106643000,-500.0,0.00022191,2]
[424739302,1781106644000,-350.0,0.00023452,7]
[424739300,1781106644000,-350.0,0.00023452,6]
[424739293,1781106644000,-350.0,0.00023452,7]
[424739296,1781106644000,-350.0,0.00023452,7]
[424739298,1781106644000,-350.0,0.00023452,6]
[424739294,1781106644000,-350.0,0.00023452,7]
[424739283,1781106644000,-350.0,0.00023452,6]
[424739284,1781106644000,-350.0,0.00023452,7]
[424739288,1781106644000,-350.0,0.00023452,7]
[424739286,1781106644000,-350.0,0.00023452,7]
[424739276,1781106644000,-132208.05721698,0.00023444,2]
[424739280,1781106644000,-350.0,0.00023452,6]
[424739268,1781106644000,-1212.77260706,0.00023383,2]
[424739269,1781106644000,-364858.89388302,0.00023444,2]
[424739265,1781106644000,-473.24533472,0.00023288,2]
[424739278,1781106644000,-350.0,0.00023452,6]
[424739264,1781106644000,-315.49688981,0.00023288,2]
[424739262,1781106644000,-157.74844491,0.00023288,2]
[424739260,1781106644000,-500.0,0.00023287,2]
[424739258,1781106644000,-1636.73,0.00023287,2]
[424739291,1781106644000,-350.0,0.00023452,6]
[424739289,1781106644000,-350.0,0.00023452,6]
[424739303,1781106644000,-350.0,0.00023452,7]
[424739346,1781106644000,-364.21,0.00023434,3]
[424739309,1781106644000,-350.0,0.00023452,6]
[424739348,1781106644000,-39834.71451391,0.000236,5]
[424739347,1781106644000,-93125.24267541,0.000236,5]
[424739345,1781106644000,-554.64,0.00020821,2]
[424739305,1781106644000,-350.0,0.00023452,7]
[424739341,1781106644000,-554.64,0.00020273,2]
[424739339,1781106644000,-554.64,0.0002,2]
[424739336,1781106644000,-554.64,0.00019452,2]
[424739338,1781106644000,-554.64,0.00019726,2]
[424739330,1781106644000,-107131.77955188,0.000236,5]
[424739328,1781106644000,-156.57,0.00023584,2]
[424739343,1781106644000,-554.64,0.00020547,2]
[424739316,1781106644000,-156.59,0.00023584,2]
[424739323,1781106644000,-156.57,0.00023584,2]
[424739321,1781106644000,-156.57,0.00023584,2]
[424739325,1781106644000,-156.57,0.00023584,2]
[424739318,1781106644000,-156.57,0.00023584,2]
[424739320,1781106644000,-156.57,0.00023584,2]
[424739314,1781106644000,-592.67017139,0.00023561,2]
[424739311,1781106644000,-1498.99668787,0.00023498,5]